bitfinex-derivatives/quotes_BNBF0:USTF0_20250715
["timestamp","ask_amount","ask_price","bid_price","bid_amount"]
[1752607163409,0.25313785,687.77,686.48,0.25329354]
[1752607163410,0.97590898,687.72,687.07,0.96889658]
[1752607163915,0.97590898,687.7,687.09,0.96889658]
[1752607164410,0.97590898,687.69,687.1,0.96889658]
[1752607164615,0.97590898,687.69,687.09,0.96889658]
[1752607165315,0.97590898,687.68,687.11,0.96889658]
[1752607166321,0.97590898,687.66,687.12,0.96889658]
[1752607167317,0.97590898,687.65,687.13,0.96889658]
[1752607168423,0.97590898,687.64,687.14,0.96889658]
[1752607169322,0.97590898,687.64,687.15,0.96889658]
[1752607169520,0.97590898,687.69,687.11,0.96889658]
[1752607170024,0.97590898,687.68,687.11,0.96889658]
[1752607170221,0.97590898,687.68,687.12,0.96889658]
[1752607170921,0.97590898,687.67,687.13,0.96889658]
[1752607171424,0.97590898,687.68,687.15,0.96889658]
[1752607171627,0.97590898,687.69,687.17,0.96889658]
[1752607173322,0.97590898,687.68,687.18,0.96889658]
[1752607174328,0.97590898,687.69,687.18,0.96889658]
[1752607174527,0.97590898,687.68,687.18,0.96889658]
[1752607175127,0.97590898,687.69,687.17,0.96889658]
[1752607176529,0.97590898,687.7,687.17,0.96889658]
[1752607177524,0.97590898,687.68,687.19,0.96889658]
[1752607178030,0.97590898,687.67,687.19,0.96889658]
[1752607178526,0.97590898,687.68,687.19,0.96889658]
[1752607179130,0.97590898,687.72,687.25,0.96889658]
[1752607179425,0.97590898,687.72,687.24,0.96889658]
[1752607179731,0.97590898,687.73,687.25,0.96889658]
[1752607180330,0.97590898,687.74,687.24,0.96889658]
[1752607180829,0.97590898,687.8,687.31,0.96889658]
[1752607181134,0.97590898,687.81,687.31,0.96889658]
[1752607181330,0.97590898,687.82,687.3,0.96889658]
[1752607181528,0.97590898,687.83,687.3,0.96889658]
[1752607182034,0.97590898,687.87,687.35,0.96889658]
[1752607182331,0.97590898,687.89,687.36,0.96889658]
[1752607182535,0.97590898,687.92,687.34,0.96889658]
[1752607183531,1.3076,688.07,687.19,1.3046252]
[1752607183930,0.25304582,688.09,687.04,1.9569378]
[1752607184130,0.25304582,688.09,686.48,0.25329354]
[1752607184531,0.25304582,688.09,687.24,1.2979105]
[1752607184736,0.98009231,687.96,687.39,0.97343292]
[1752607185038,0.98009231,687.96,687.24,1.2979105]
[1752607185339,0.25304582,688.09,687.24,1.2979105]
[1752607185739,0.9800127,687.96,687.38,0.97335381]
[1752607186336,0.25304582,688.09,687.24,1.2979105]
[1752607187035,0.25304582,688.09,687.09,1.9468658]
[1752607187240,0.97995438,688.0,687.41,0.97333914]
[1752607187436,0.97995438,688.04,687.41,0.97333914]
[1752607188342,0.97995438,688.06,687.39,0.97333914]
[1752607189441,0.97995438,688.08,687.4,0.97333914]
[1752607189640,0.97995438,688.1,687.41,0.97333914]
[1752607190442,0.97995438,688.12,687.4,0.97333914]
[1752607191344,0.97995438,688.13,687.38,0.97333914]
[1752607191641,0.97995438,688.15,687.4,0.97333914]
[1752607192338,0.97995438,688.16,687.39,0.97333914]
[1752607193441,0.97995438,688.18,687.38,0.97333914]
[1752607194439,1.23294593,688.19,687.37,0.97333914]
[1752607194643,0.97995438,688.19,687.37,0.97333914]
[1752607195042,0.97995438,688.21,687.4,0.97333914]
[1752607195444,0.97995438,688.22,687.39,0.97333914]
[1752607195645,0.97995438,688.22,687.38,0.97333914]
[1752607195944,0.97995438,688.23,687.39,0.97333914]
[1752607196140,0.97995438,688.24,687.4,0.97333914]
[1752607196545,0.97995438,688.25,687.39,0.97333914]
[1752607197142,0.97995438,688.26,687.4,0.97333914]
[1752607197344,1.23291191,688.27,687.39,0.97333914]
[1752607198446,0.25295753,688.27,687.38,0.97333914]
[1752607199147,0.25295753,688.27,687.37,0.97333914]
[1752607199446,0.25295753,688.27,687.4,0.97333914]
[1752607199645,3.2690001,689.25,687.36,0.97333914]
[1752607199646,0.97995438,688.41,687.36,0.97333914]
[1752607199847,0.25292536,688.36,687.36,0.97333914]
[1752607200641,0.25292536,688.36,687.46,0.97333914]
[1752607201546,0.25292536,688.36,687.44,0.97333914]
[1752607202245,0.25292536,688.36,687.43,0.97333914]
[1752607202446,0.25292536,688.36,687.41,0.97333914]
[1752607203342,0.25292536,688.36,687.4,0.97333914]
[1752607204247,0.25292536,688.36,687.39,0.97333914]
[1752607207246,0.25292536,688.36,687.38,0.97333914]
[1752607208153,0.25292536,688.36,687.37,0.97333914]
[1752607208453,0.25292536,688.36,687.38,0.97333914]
[1752607209349,0.25292536,688.36,686.93,0.25294834]
[1752607209350,0.25292536,688.36,687.39,0.97333914]
[1752607209850,0.25292536,688.36,687.37,0.97333914]
[1752607210050,0.25292536,688.36,687.43,0.97333914]
[1752607210248,0.25292536,688.36,687.42,0.97333914]
[1752607210447,0.97995438,688.65,687.44,0.97333914]
[1752607210652,0.25286838,688.49,687.47,0.97333914]
[1752607210851,0.25286838,688.49,687.5,0.97333914]
[1752607211354,0.25286838,688.49,687.49,0.97333914]
[1752607212249,0.25286838,688.49,686.93,0.25294834]
[1752607212250,0.25286838,688.49,687.48,0.97333914]
[1752607213253,0.25286838,688.49,687.47,0.97333914]
[1752607213750,0.25286838,688.49,687.44,0.97333914]
[1752607215354,0.25286838,688.49,687.43,0.97333914]
[1752607218355,0.25286838,688.49,687.42,0.97333914]
[1752607220156,0.25286838,688.49,687.48,0.97333914]
[1752607220364,0.25286838,688.49,687.44,0.97333914]
[1752607220654,0.25286838,688.49,687.43,0.97333914]
[1752607221257,0.25286838,688.49,687.42,0.97333914]
[1752607221557,0.25286838,688.49,687.43,0.97333914]
[1752607222058,0.25286838,688.49,687.45,0.97333914]
[1752607222358,0.25286838,688.49,687.37,0.97333914]
[1752607222554,0.25286838,688.49,687.38,0.97333914]
[1752607222854,0.25286838,688.49,687.42,0.97333914]
[1752607223357,0.25286838,688.49,687.37,0.97333914]
[1752607223758,0.25286838,688.49,687.36,0.97333914]
[1752607224057,0.25286838,688.49,687.44,0.97333914]
[1752607224254,0.25286838,688.49,687.45,0.97333914]
[1752607224758,0.25286838,688.49,687.46,0.97333914]
[1752607225458,0.25286838,688.49,687.47,0.97333914]
[1752607227559,0.25286838,688.49,686.93,0.25294834]
[1752607227560,0.25286838,688.49,687.48,0.97333914]
[1752607228464,0.25286838,688.49,687.51,0.97333914]
[1752607228758,0.25286838,688.49,687.53,0.97333914]
[1752607228957,0.25286838,688.49,687.52,0.97333914]
[1752607229664,0.25286838,688.49,687.53,0.97333914]
[1752607230163,0.25286838,688.49,687.52,0.97333914]
[1752607230363,0.25286838,688.49,687.48,0.97333914]
[1752607230563,0.25286838,688.49,687.53,0.97333914]
[1752607231360,0.25286838,688.49,687.54,0.97333914]
[1752607232259,0.25286838,688.49,687.55,0.97333914]
[1752607232664,0.25286838,688.49,687.57,0.97333914]
[1752607233567,0.25286838,688.49,687.58,0.97333914]
[1752607233766,0.25286838,688.49,687.57,0.97333914]
[1752607234464,0.25286838,688.49,687.58,0.97333914]
[1752607234961,0.25286838,688.49,687.57,0.97333914]
[1752607235165,0.25286838,688.49,687.56,0.97333914]
[1752607235461,1.23282276,688.49,687.5,0.97333914]
[1752607235661,0.97995438,688.46,687.48,0.97333914]
[1752607236262,0.97995438,688.45,687.49,0.97333914]
[1752607237166,0.97995438,688.44,687.49,0.97333914]
[1752607237361,0.97995438,688.43,687.51,0.97333914]
[1752607238367,0.97995438,688.41,687.53,0.97333914]
[1752607239165,0.97995438,688.4,687.53,0.97333914]
[1752607239370,0.97995438,688.38,687.54,0.97333914]
[1752607240466,0.97995438,688.36,687.55,0.97333914]
[1752607241570,0.97995438,688.33,687.55,0.97333914]
[1752607241873,0.97995438,688.31,687.57,0.97333914]
[1752607242372,0.97995438,688.29,687.58,0.97333914]
[1752607242772,0.97995438,688.29,687.57,0.97333914]
[1752607243276,0.97995438,688.28,687.57,0.97333914]
[1752607243575,0.97995438,688.29,687.57,0.97333914]
[1752607244473,0.97995438,688.33,687.54,0.97333914]
[1752607244975,0.97995438,688.34,687.55,0.97333914]
[1752607247378,0.97995438,688.33,687.55,0.97333914]
[1752607248386,0.97995438,688.32,687.56,0.97333914]
[1752607249582,0.97995438,688.31,687.57,0.97333914]
[1752607250285,0.97995438,688.3,687.57,0.97333914]
[1752607250681,0.97995438,688.31,687.57,0.97333914]
[1752607251685,1.3066058,688.46,687.57,0.97333914]
[1752607251686,0.97995438,688.3,687.57,0.97333914]
[1752607252385,0.97995438,688.3,687.58,0.97333914]
[1752607253490,0.25286838,688.49,687.58,0.97333914]
[1752607253491,0.97995438,688.29,687.58,0.97333914]
[1752607254190,0.97995438,688.28,687.58,0.97333914]
[1752607254387,0.97995438,688.25,687.61,0.97333914]
[1752607255491,0.97995438,688.24,687.61,0.97333914]
[1752607256589,0.97995438,688.22,687.62,0.97333914]
[1752607257186,0.97995438,688.22,687.63,0.97333914]
[1752607258494,0.97995438,688.21,687.64,0.97333914]
[1752607259696,0.97995438,688.2,687.65,0.97333914]
[1752607260396,0.97995438,688.2,687.64,0.97333914]
[1752607260596,0.97995438,688.19,687.63,0.97333914]
[1752607260796,0.97995438,688.19,687.61,0.97333914]
[1752607261096,0.97995438,688.18,687.59,0.97333914]
[1752607261397,0.25286838,688.49,686.93,0.25294834]
[1752607261398,0.97995438,688.17,687.58,0.97333914]
[1752607261597,0.97995438,688.19,687.51,0.97333914]
[1752607263297,0.97995438,688.2,687.5,0.97333914]
[1752607263495,0.97995438,688.19,687.5,0.97333914]
[1752607264297,0.97995438,688.2,687.49,0.97333914]
[1752607264800,0.97995438,688.19,687.48,0.97333914]
[1752607265396,0.97995438,688.2,687.48,0.97333914]
[1752607266001,0.97995438,688.17,687.5,0.97333914]
[1752607266499,0.97995438,688.17,687.49,0.97333914]
[1752607267800,0.97995438,688.18,687.48,0.97333914]
[1752607268100,0.97995438,688.16,687.47,0.97333914]
[1752607269300,0.97995438,688.17,687.46,0.97333914]
[1752607270998,0.97995438,688.16,687.47,0.97333914]
[1752607271297,0.97816681,688.11,687.42,0.96992479]
[1752607271501,0.97816681,688.09,687.43,0.96992479]
[1752607271702,0.97816681,688.03,687.41,0.96992479]
[1752607271903,0.97816681,688.03,687.42,0.96992479]
[1752607272403,0.97816681,688.04,687.41,0.96992479]
[1752607272999,0.97816681,688.02,687.39,0.96992479]
[1752607273502,0.97816681,688.03,687.38,0.96992479]
[1752607273702,0.97816681,688.02,687.38,0.96992479]
[1752607274405,0.97816681,688.03,687.37,0.96992479]
[1752607274801,0.97816681,688.03,687.38,0.96992479]
[1752607275600,0.97816681,688.04,687.37,0.96992479]
[1752607276307,0.97816681,688.05,687.37,0.96992479]
[1752607277306,0.97816681,688.19,687.27,0.96992479]
[1752607277507,0.97816681,688.2,687.26,0.96992479]
[1752607279303,0.97816681,688.21,687.26,0.96992479]
[1752607280210,0.97816681,688.2,687.26,0.96992479]
[1752607280406,0.97816681,688.21,687.26,0.96992479]
[1752607281009,0.97816681,688.21,687.25,0.96992479]
[1752607282207,0.97816681,688.21,687.26,0.96992479]
[1752607282509,0.97816681,688.21,687.25,0.96992479]
[1752607284411,0.97816681,688.22,687.25,0.96992479]
[1752607285206,0.97816681,688.21,687.25,0.96992479]
[1752607285410,0.97816681,688.22,687.25,0.96992479]
[1752607286211,0.97816681,688.21,687.25,0.96992479]
[1752607287111,0.97816681,688.12,687.32,0.96992479]
[1752607287312,0.97816681,688.12,687.31,0.96992479]
[1752607288214,0.97816681,688.12,687.32,0.96992479]
[1752607288414,0.97816681,688.12,687.31,0.96992479]
[1752607288917,0.97816681,688.12,687.32,0.96992479]
[1752607289117,0.97816681,688.12,687.31,0.96992479]
[1752607289416,0.97816681,688.11,687.32,0.96992479]
[1752607290319,0.97816681,688.16,687.28,0.96992479]
[1752607292519,0.97816681,688.16,687.27,0.96992479]
[1752607293224,0.97816681,688.16,687.09,1.2977855]
[1752607293225,0.97816681,688.16,687.28,0.96992479]
[1752607293723,0.25286838,688.49,687.25,0.96992479]
[1752607293724,0.97816681,688.13,687.25,0.96992479]
[1752607294322,0.97816681,688.09,687.21,0.96992479]
[1752607294722,0.97816681,688.05,687.24,0.96992479]
[1752607295021,0.97723781,688.01,687.26,0.96838762]
[1752607295218,0.97723781,688.01,687.27,0.96838762]
[1752607295422,0.97723781,688.02,687.26,0.96838762]
[1752607298323,0.97723781,688.03,687.25,0.96838762]
[1752607299228,0.97723781,688.18,687.15,0.96838762]
[1752607301232,1.3066058,688.42,686.93,0.25294834]
[1752607301532,0.97714793,688.18,687.15,0.96895767]
[1752607302336,0.97714793,688.19,687.14,0.96895767]
[1752607302635,0.97714793,688.18,687.14,0.96895767]
[1752607302935,0.97714793,688.19,687.14,0.96895767]
[1752607303436,0.97714793,688.15,687.09,0.96895767]
[1752607305233,0.97714793,688.15,687.1,0.96895767]
[1752607305434,0.97714793,688.06,687.17,0.96895767]
[1752607305634,0.97714793,688.06,687.18,0.96895767]
[1752607306131,0.97714793,688.06,687.17,0.96895767]
[1752607306434,0.97714793,688.09,687.2,0.96895767]
[1752607306638,0.97714793,688.13,687.24,0.96895767]
[1752607307138,0.97714793,688.1,687.25,0.96895767]
[1752607309439,0.97714793,688.09,687.26,0.96895767]
[1752607309734,0.97714793,688.1,687.26,0.96895767]
[1752607310339,0.97714793,688.09,687.26,0.96895767]
[1752607310636,0.97714793,688.07,687.27,0.96895767]
[1752607311335,1.9601846,688.38,687.28,0.96895767]
[1752607311336,0.97714793,688.06,687.28,0.96895767]
[1752607313338,0.97714793,688.05,687.29,0.96895767]
[1752607314544,0.97714793,688.11,687.24,0.96895767]
[1752607315244,0.97714793,688.11,687.25,0.96895767]
[1752607315545,0.97714793,688.1,687.25,0.96895767]
[1752607316340,0.97714793,688.09,687.26,0.96895767]
[1752607317245,0.97714793,688.09,687.27,0.96895767]
[1752607318346,0.97714793,688.08,687.27,0.96895767]
[1752607319348,0.97714793,688.07,687.28,0.96895767]
[1752607321646,0.97714793,688.07,687.09,1.2977855]
[1752607321647,0.97714793,688.07,687.29,0.96895767]
[1752607322345,0.97714793,688.06,687.29,0.96895767]
[1752607322948,0.97714793,688.07,687.29,0.96895767]
[1752607323249,0.97714793,688.06,687.29,0.96895767]
[1752607323447,0.97714793,688.06,687.3,0.96895767]
[1752607324549,0.97714793,687.99,687.34,0.96895767]
[1752607325046,0.97714793,688.0,687.34,0.96895767]
[1752607325552,0.97714793,687.99,687.34,0.96895767]
[1752607327453,0.97714793,687.98,687.35,0.96895767]
[1752607328250,0.97714793,687.97,687.36,0.96895767]
[1752607330352,0.97714793,687.96,687.37,0.96895767]
[1752607330750,0.97714793,687.95,687.37,0.96895767]
[1752607333853,0.97714793,687.95,687.38,0.96895767]
[1752607334058,0.97714793,687.95,687.37,0.96895767]
[1752607334960,0.97714793,687.94,687.38,0.96895767]
[1752607336262,0.97714793,687.94,687.39,0.96895767]
[1752607336458,0.97714793,687.94,687.38,0.96895767]
[1752607336763,0.97714793,687.94,687.39,0.96895767]
[1752607336962,1.3066058,688.09,687.24,1.2977855]
[1752607337162,0.98049288,687.94,687.39,0.96965133]
[1752607337763,0.25286838,688.49,686.93,0.25294834]
[1752607337764,0.98049288,687.96,687.41,0.96965133]
[1752607337964,0.98049288,688.0,687.45,0.96965133]
[1752607338163,0.98049288,688.01,687.44,0.96965133]
[1752607338364,0.98049288,688.08,687.49,0.96965133]
[1752607338762,0.98049288,688.1,687.48,0.96965133]
[1752607339162,0.98049288,688.11,687.47,0.96965133]
[1752607339865,0.98049288,688.13,687.46,0.96965133]
[1752607340362,0.98049288,688.12,687.46,0.96965133]
[1752607340662,0.98049288,688.13,687.46,0.96965133]
[1752607340962,0.98049288,688.14,687.46,0.96965133]
[1752607342365,0.98049288,688.14,687.45,0.96965133]
[1752607342664,0.98049288,688.13,687.46,0.96965133]
[1752607343366,0.98049288,688.14,687.46,0.96965133]
[1752607345362,0.98049288,688.14,687.45,0.96965133]
[1752607346565,0.98049288,688.15,687.45,0.96965133]
[1752607347366,0.98049288,688.14,687.45,0.96965133]
[1752607348365,0.98049288,688.15,687.45,0.96965133]
[1752607348562,0.98049288,688.15,686.93,0.25294834]
[1752607348563,0.98049288,688.13,687.46,0.96965133]
[1752607349865,0.98049288,688.11,687.47,0.96965133]
[1752607350464,0.98049288,688.1,687.47,0.96965133]
[1752607350666,1.3066058,688.25,687.47,0.96965133]
[1752607350667,0.98049288,688.11,687.47,0.96965133]
[1752607350967,0.98049288,688.1,687.48,0.96965133]
[1752607351565,0.98049288,688.11,687.47,0.96965133]
[1752607352068,0.98049288,688.09,687.48,0.96965133]
[1752607352368,0.98049288,688.1,687.48,0.96965133]
[1752607352572,0.98049288,688.12,687.47,0.96965133]
[1752607353170,0.98049288,688.11,687.48,0.96965133]
[1752607353767,0.98049288,688.18,687.43,0.96965133]
[1752607354371,0.98049288,688.19,687.44,0.96965133]
[1752607354571,0.98049288,688.21,687.46,0.96965133]
[1752607354968,0.98049288,688.22,687.46,0.96965133]
[1752607355673,0.98049288,688.27,687.51,0.96965133]
[1752607356168,0.98049288,688.31,687.55,0.96965133]
[1752607356472,0.98049288,688.32,687.54,0.96965133]
[1752607357368,0.98049288,688.33,687.53,0.96965133]
[1752607357969,0.98049288,688.33,687.54,0.96965133]
[1752607358173,0.98049288,688.33,687.53,0.96965133]
[1752607358670,0.98049288,688.34,687.52,0.96965133]
[1752607361673,0.98049288,688.35,687.51,0.96965133]
[1752607362373,3.2690001,689.44,686.43,3.2615631]
[1752607362374,0.98049288,688.37,687.5,0.96965133]
[1752607363074,0.98049288,688.32,687.53,0.96965133]
[1752607363371,0.98049288,688.36,687.56,0.96965133]
[1752607363769,0.98049288,688.41,687.53,0.96965133]
[1752607364171,0.98049288,688.43,687.54,0.96965133]
[1752607364370,0.98049288,688.47,687.54,0.96965133]
[1752607364571,0.98049288,688.47,687.57,0.96965133]
[1752607365776,0.98049288,688.47,687.56,0.96965133]
[1752607366474,0.98049288,688.48,687.55,0.96965133]
[1752607367173,0.98049288,688.48,687.56,0.96965133]
[1752607367375,0.98049288,688.48,687.55,0.96965133]
[1752607369375,0.98049288,688.49,687.54,0.96965133]
[1752607369776,0.98049288,688.49,687.55,0.96965133]
[1752607369982,0.98049288,688.52,687.52,0.96965133]
[1752607370381,0.98049288,688.53,687.52,0.96965133]
[1752607371484,0.98049288,688.54,687.52,0.96965133]
[1752607371883,0.98049288,688.51,687.54,0.96965133]
[1752607373485,0.98049288,688.52,687.54,0.96965133]
[1752607374285,0.98049288,688.51,687.54,0.96965133]
[1752607374486,0.98049288,688.52,687.54,0.96965133]
[1752607375185,0.98049288,688.51,687.54,0.96965133]
[1752607375385,0.98049288,688.52,687.53,0.96965133]
[1752607376480,0.98049288,688.53,687.53,0.96965133]
[1752607377385,3.2690001,689.7,687.56,0.96965133]
[1752607377386,0.98049288,688.48,687.56,0.96965133]
[1752607379388,1.3066058,688.65,687.39,1.2977855]
[1752607379581,1.3066058,688.65,687.56,0.96349695]
[1752607379582,0.97553125,688.48,687.56,0.96349695]
[1752607379786,0.97553125,688.51,687.62,0.96349695]
[1752607380188,0.97553125,688.51,687.63,0.96349695]
[1752607380684,0.97553125,688.5,687.64,0.96349695]
[1752607382284,0.97553125,688.5,687.63,0.96349695]
[1752607382488,0.97553125,688.5,687.64,0.96349695]
[1752607383389,0.97553125,688.5,687.63,0.96349695]
[1752607385190,0.97553125,688.47,687.66,0.96349695]
[1752607385486,0.97553125,688.46,687.66,0.96349695]
[1752607386087,0.97553125,688.47,687.66,0.96349695]
[1752607386391,0.97553125,688.46,687.66,0.96349695]
[1752607388096,0.97553125,688.48,687.65,0.96349695]
[1752607388694,0.97553125,688.47,687.65,0.96349695]
[1752607388995,0.97553125,688.48,687.64,0.96349695]
[1752607389593,0.97553125,688.48,687.65,0.96349695]
[1752607390298,0.97553125,688.47,687.65,0.96349695]
[1752607391494,0.97553125,688.46,687.66,0.96349695]
[1752607393002,0.97553125,688.48,687.64,0.96349695]
[1752607393400,0.97553125,688.48,687.65,0.96349695]
[1752607394802,0.97553125,688.47,687.65,0.96349695]
[1752607395102,0.97553125,688.48,687.65,0.96349695]
[1752607395300,0.97553125,688.47,687.65,0.96349695]
[1752607395504,0.97553125,688.47,687.66,0.96349695]
[1752607396105,0.97553125,688.47,687.65,0.96349695]
[1752607396506,0.97553125,688.46,687.66,0.96349695]
[1752607397402,0.97553125,688.45,687.67,0.96349695]
[1752607401510,0.97553125,688.44,687.68,0.96349695]
[1752607401706,0.97553125,688.43,687.68,0.96349695]
[1752607402608,0.97553125,688.42,687.69,0.96349695]
[1752607404007,0.97553125,688.41,687.69,0.96349695]
[1752607404309,0.97553125,688.43,687.6,0.96349695]
[1752607405012,0.97553125,688.42,687.59,0.96349695]
[1752607405411,0.97553125,688.42,687.6,0.96349695]
[1752607406510,0.97553125,688.41,687.6,0.96349695]
[1752607407213,0.97744268,688.41,687.6,0.96436726]
[1752607407512,0.97744268,688.41,687.61,0.96436726]
[1752607407714,0.97744268,688.4,687.61,0.96436726]
[1752607408010,0.97744268,688.27,687.58,0.96436726]
[1752607408411,0.97744268,688.26,687.58,0.96436726]
[1752607408612,0.97744268,688.26,687.57,0.96436726]
[1752607408810,0.97744268,688.24,687.59,0.96436726]
[1752607409715,0.97744268,688.2,687.56,0.96436726]
[1752607410015,0.97744268,688.2,687.55,0.96436726]
[1752607410514,0.97744268,688.2,687.56,0.96436726]
[1752607411515,0.97744268,688.19,687.56,0.96436726]
[1752607412516,0.97744268,688.18,687.57,0.96436726]
[1752607413112,1.3066058,688.31,687.57,0.96436726]
[1752607413113,0.97744268,688.19,687.57,0.96436726]
[1752607413317,0.97744268,688.32,687.47,0.96436726]
[1752607413513,0.97744268,688.22,687.39,0.96436726]
[1752607414117,0.97744268,688.23,687.39,0.96436726]
[1752607414419,0.97744268,688.26,687.43,0.96436726]
[1752607414712,0.97744268,688.27,687.48,0.96436726]
[1752607415018,0.97744268,688.32,687.48,0.96436726]
[1752607420121,0.97744268,688.28,687.5,0.96436726]
[1752607420520,0.97744268,688.28,687.51,0.96436726]
[1752607421221,0.97744268,688.28,687.5,0.96436726]
[1752607421420,0.97744268,688.27,687.52,0.96436726]
[1752607422120,0.97744268,688.27,687.51,0.96436726]
[1752607422420,0.97744268,688.27,687.52,0.96436726]
[1752607423119,0.97744268,688.27,687.51,0.96436726]
[1752607423316,0.97744268,688.26,687.52,0.96436726]
[1752607425122,0.97744268,688.26,687.36,1.2977855]
[1752607425123,0.97744268,688.26,687.53,0.96436726]
[1752607425322,0.97744268,688.26,687.52,0.96436726]
[1752607426721,0.97744268,688.26,687.53,0.96436726]
[1752607427219,0.97744268,688.26,687.52,0.96436726]
[1752607427820,0.97744268,688.25,687.53,0.96436726]
[1752607428520,0.97744268,688.25,687.52,0.96436726]
[1752607428719,0.97744268,688.26,687.52,0.96436726]
[1752607429427,3.2690001,689.23,686.55,3.2615631]
[1752607429428,0.97744268,688.25,687.53,0.96436726]
[1752607430025,0.97744268,688.21,687.55,0.96436726]
[1752607430222,0.97744268,688.21,687.41,1.2977855]
[1752607430223,0.97744268,688.28,687.5,0.96436726]
[1752607430422,0.97744268,688.31,687.48,0.96436726]
[1752607430621,1.3066058,688.5,687.48,0.96436726]
[1752607430622,0.97744268,688.3,687.48,0.96436726]
[1752607431623,0.97744268,688.25,687.51,0.96436726]
[1752607431827,0.97744268,688.19,687.55,0.96436726]
[1752607432427,0.97744268,688.18,687.55,0.96436726]
[1752607434131,0.97744268,688.13,687.51,0.96436726]
[1752607434425,0.97744268,688.11,687.48,0.96436726]
[1752607434629,0.97744268,688.11,687.47,0.96436726]
[1752607434927,0.97744268,688.11,687.48,0.96436726]
[1752607435126,0.97744268,688.11,687.47,0.96436726]
[1752607435425,0.97744268,688.11,687.48,0.96436726]
[1752607435725,0.97744268,688.1,687.48,0.96436726]
[1752607436230,0.97744268,688.11,687.48,0.96436726]
[1752607436428,0.97744268,688.11,687.47,0.96436726]
[1752607436626,0.97744268,688.06,687.42,0.96436726]
[1752607436930,0.97744268,688.06,687.43,0.96436726]
[1752607437426,0.97744268,688.06,687.32,1.2977855]
[1752607437427,0.97744268,688.07,687.42,0.96436726]
[1752607438726,1.3066058,688.19,687.31,1.2977855]
[1752607438931,0.97748643,688.07,687.42,0.96714346]
[1752607439227,0.97748643,688.08,687.42,0.96714346]
[1752607441640,0.97748643,688.08,687.41,0.96714346]
[1752607443437,0.97748643,688.08,687.4,0.96714346]
[1752607444342,0.97748643,688.08,687.41,0.96714346]
[1752607444538,0.97748643,688.08,687.4,0.96714346]
[1752607445437,0.97748643,688.09,687.4,0.96714346]
[1752607446140,0.97748643,688.08,687.4,0.96714346]
[1752607446342,0.97748643,688.09,687.4,0.96714346]
[1752607448146,0.97748643,688.09,687.41,0.96714346]
[1752607448344,0.97748643,688.09,687.4,0.96714346]
[1752607448545,0.97748643,688.11,687.4,0.96714346]
[1752607451655,0.97748643,688.15,687.44,0.96714346]
[1752607452150,0.97748643,688.14,687.44,0.96714346]
[1752607452752,0.97748643,688.34,687.31,0.96714346]
[1752607452955,0.97748643,688.34,687.32,0.96714346]
[1752607454355,0.97748643,688.33,687.32,0.96714346]
[1752607455452,0.97748643,688.34,687.32,0.96714346]
[1752607456255,0.97748643,688.33,687.32,0.96714346]
[1752607456756,0.97748643,688.38,687.37,0.96714346]
[1752607457454,0.97748643,688.38,687.38,0.96714346]
[1752607458252,0.97748643,688.37,687.38,0.96714346]
[1752607459156,0.97748643,688.36,687.38,0.96714346]
[1752607460157,0.97748643,688.36,687.39,0.96714346]
[1752607461156,0.97748643,688.35,687.39,0.96714346]
[1752607462157,0.97748643,688.35,687.15,1.2977855]
[1752607462158,0.97748643,688.34,687.4,0.96714346]
[1752607462454,0.97748643,688.26,687.46,0.96714346]
[1752607463157,0.97748643,688.25,687.47,0.96714346]
[1752607463859,0.97748643,688.22,687.47,0.96714346]
[1752607464054,0.97748643,688.21,687.49,0.96714346]
[1752607464559,0.97748643,688.21,687.5,0.96714346]
[1752607464858,0.97748643,688.2,687.5,0.96714346]
[1752607465257,0.97748643,688.18,687.51,0.96714346]
[1752607465555,0.97748643,688.15,687.54,0.96714346]
[1752607466358,0.97748643,688.14,687.54,0.96714346]
[1752607466653,1.9601846,688.42,686.45,4.5682541]
[1752607466654,0.97748643,688.12,687.56,0.96714346]
[1752607466857,0.97748643,688.11,687.56,0.96714346]
[1752607467257,0.97748643,688.11,687.57,0.96714346]
[1752607468256,4.5450062,689.05,687.58,0.96714346]
[1752607468257,0.97748643,688.1,687.58,0.96714346]
[1752607468459,0.97748643,688.12,687.56,0.96714346]
[1752607469160,0.97748643,688.19,687.51,0.96714346]
[1752607469557,0.97748643,688.19,687.5,0.96714346]
[1752607472462,0.97748643,688.18,687.5,0.96714346]
[1752607473763,1.3066058,688.36,687.33,1.2977855]
[1752607473963,4.5450062,689.58,686.11,4.5682541]
[1752607478370,0.9796429,688.01,687.45,0.9714292]
[1752607478565,0.9796429,688.0,687.45,0.9714292]
[1752607479065,0.9796429,688.01,687.45,0.9714292]
[1752607480270,0.9796429,688.02,687.45,0.9714292]
[1752607481770,0.9796429,688.06,687.49,0.9714292]
[1752607481973,0.9796429,688.07,687.49,0.9714292]
[1752607482171,0.9796429,688.09,687.48,0.9714292]
[1752607482474,0.9796429,688.09,687.49,0.9714292]
[1752607482873,0.9796429,688.1,687.48,0.9714292]
[1752607484476,0.9796429,688.13,687.52,0.9714292]
[1752607484675,0.9796429,688.13,687.51,0.9714292]
[1752607485172,0.9796429,688.13,687.52,0.9714292]
[1752607486278,0.9796429,688.12,687.52,0.9714292]
[1752607488276,1.30619,688.27,687.37,1.295238]
[1752607488576,0.9796648,688.12,687.53,0.970896]
[1752607488977,1.30619,688.27,687.38,1.295238]